fUSD/lending_fUSD_20260413
["ID","MTS","AMOUNT","RATE_DAILY","PERIOD"]
[420405026,1776083716966,-1335.0,0.00033902,30]
[420405027,1776083716997,-830.0,0.00033908,30]
[420405028,1776083717025,-500.0,0.00034325,60]
[420405029,1776083717059,-500.0,0.00034325,60]
[420405030,1776083717092,-919.4982786,0.00034325,60]
[420405031,1776083717119,-892.3280892,0.00034325,60]
[420405032,1776083717149,-732.826962,0.00034325,60]
[420405033,1776083717179,-500.0,0.00034325,60]
[420405034,1776083717592,-500.0,0.00034325,60]
[420405035,1776083717623,-514.7270456,0.00034325,60]
[420405036,1776083717651,-199.0929921,0.00034325,60]
[420405037,1776083717683,-249.5274609,0.00034325,60]
[420405038,1776083717716,-301.4376887,0.00034325,60]
[420405039,1776083717751,-542.8807256,0.00034325,60]
[420405040,1776083717798,-503.6122884,0.00034325,60]
[420405041,1776083717847,-500.0,0.00034325,60]
[420405042,1776083717934,-638.7678059,0.00034325,60]
[420405043,1776083718225,-500.0,0.00034329,120]
[420405044,1776083718361,-215.85,0.000345,30]
[420405045,1776083718434,-1155.0,0.00034902,30]
[420405046,1776083718496,-1335.0,0.00034902,30]
[420405047,1776083718534,-830.0,0.00034908,30]
[420405048,1776083718567,-500.0,0.00035068,120]
[420405049,1776083718616,-13432.78,0.00035081,30]
[420405050,1776083718681,-151.0,0.0003538,120]
[420405051,1776083718732,-500.0,0.0003589,120]
[420405052,1776083718840,-1155.0,0.00035902,30]
[420405053,1776083718920,-1335.0,0.00035902,30]
[420405054,1776083718965,-830.0,0.00035908,30]
[420405055,1776083719003,-500.0,0.00036712,120]
[420405056,1776083719032,-1337.30371513,0.00036892,30]
[420405057,1776083719060,-1155.0,0.00036902,30]
[420405058,1776083719092,-1335.0,0.00036902,30]
[420405059,1776083719125,-830.0,0.00036908,30]
[420405060,1776083719151,-193.63,0.0003735,45]
[420405061,1776083719181,-15351.75,0.00037368,30]
[420405062,1776083719210,-171.98,0.0003753,120]
[420405063,1776083719236,-500.0,0.00037534,120]
[420405064,1776083719267,-277.12,0.0003781,30]
[420405065,1776083719298,-161.65654595,0.0003781,30]
[420405066,1776083719326,-161.65654595,0.0003781,30]
[420405067,1776083719360,-161.65654595,0.0003781,30]
[420405068,1776083719393,-161.65,0.0003781,30]
[420405069,1776083719424,-1289.58892491,0.00037825,30]
[420405070,1776083719454,-1155.0,0.00037902,30]
[420405071,1776083719497,-1335.0,0.00037902,30]
[420405072,1776083719537,-830.0,0.00037908,30]
[420405073,1776083719576,-205.01,0.00038034,30]
[420405074,1776083719607,-193.63,0.0003813,54]
[420405075,1776083719641,-1243.57659104,0.00038355,30]
[420405076,1776083719681,-500.0,0.00038356,120]
[420405077,1776083719714,-1199.20597015,0.00038629,30]
[420405078,1776083719751,-215.85,0.000387,30]
[420405079,1776083719781,-1155.0,0.00038902,30]
[420405080,1776083719820,-1335.0,0.00038902,30]
[420405081,1776083719853,-830.0,0.00038908,30]
[420405082,1776083719884,-193.64,0.0003892,63]
[420405083,1776083719915,-7167.0,0.00039,120]
[420405084,1776083719948,-500.0,0.00039178,120]
[420405085,1776083719980,-3100.389,0.0003926,54]
[420405086,1776083720014,-500.0,0.00039577,120]
[420405087,1776083720063,-17270.72,0.00039656,30]
[420405088,1776083720102,-193.64,0.000397,70]
[420405089,1776083720129,-500.0,0.00039863,120]
[420405090,1776083720169,-381.8156857,0.0004,120]
[420405091,1776083720202,-1000.0,0.0004,120]
[420405092,1776083720231,-1000.0,0.0004,120]
[420405093,1776083720267,-49948.9,0.0004,120]
[420405094,1776083720305,-500.0,0.0004,120]
[420405095,1776083720340,-500.0,0.0004,120]
[420405096,1776083720379,-218.86385176,0.00040057,81]
[420405097,1776083720406,-1500.0,0.00040136,120]
[420405098,1776083720441,-1500.0,0.00040273,120]
[420405099,1776083720471,-1500.0,0.0004041,120]
[420405100,1776083720500,-1000.0,0.00040462,120]
[420405101,1776083720527,-193.64,0.0004048,78]
[420405102,1776083720555,-2000.0,0.000405,60]
[420405103,1776083720582,-1500.0,0.00040547,120]
[420405104,1776083720608,-1500.0,0.00040684,120]
[420405105,1776083720634,-500.0,0.00040767,120]
[420405106,1776083720661,-1500.0,0.00040821,120]
[420405107,1776083720690,-13098.0,0.0004095,60]
[420405108,1776083720720,-1500.0,0.00040958,120]
[420405109,1776083720747,-2000.0,0.00041,60]
[420405110,1776083720775,-1156.41848616,0.00041016,30]
[420405111,1776083720807,-3000.0,0.00041095,120]
[420405112,1776083720833,-3000.0,0.00041095,120]
[420405113,1776083720862,-3000.0,0.00041095,120]
[420405114,1776083720895,-3000.0,0.00041095,120]
[420405115,1776083720923,-3000.0,0.00041095,120]
[420405116,1776083720956,-3000.0,0.00041095,120]
[420405117,1776083720985,-3000.0,0.00041095,120]
[420405118,1776083721025,-3000.0,0.00041095,120]
[420405119,1776083721070,-3000.0,0.00041095,120]
[420405120,1776083721112,-3000.0,0.00041095,120]
[420405121,1776083721168,-3000.0,0.00041095,120]
[420405122,1776083721211,-3000.0,0.00041095,120]
[420405123,1776083721249,-3000.0,0.00041095,120]
[420405124,1776083721294,-3000.0,0.00041095,120]
[420405125,1776083721334,-284.060167,0.00041095,120]
[420405126,1776083721369,-1500.0,0.00041095,120]
[420405127,1776083721403,-1528.0,0.00041096,120]
[420405128,1776083721451,-1500.0,0.00041232,120]
[420405129,1776083721801,-193.64,0.0004127,85]
[420405130,1776083721830,-500.0,0.00041347,120]
[420405131,1776083721866,-1500.0,0.00041369,120]
[420405132,1776083721905,-255.0,0.00041369,120]
[420405133,1776083721937,-215.85,0.000414,30]
[420405134,1776083721974,-2000.0,0.000415,60]
[420405135,1776083722032,-255.0,0.000415,60]
[420405136,1776083722072,-1500.0,0.00041506,120]
[420405137,1776083722114,-159.0,0.00041538,120]
[420405138,1776083722158,-187.0,0.00041629,30]
[420405139,1776083722199,-1116.0,0.00041629,30]
[420405140,1776083722238,-1500.0,0.00041643,120]
[420405141,1776083722276,-500.0,0.00041671,120]
[420405142,1776083722312,-1500.0,0.0004178,120]
[420405143,1776083722347,-1500.0,0.00041917,120]
[420405144,1776083722412,-19189.69,0.00041944,30]
[420405145,1776083722681,-1115.157653,0.00041999,30]
[420405146,1776083722750,-1000.0,0.00042,120]
[420405147,1776083722797,-1000.0,0.00042,120]
[420405148,1776083722841,-2000.0,0.00042,90]
[420405149,1776083722882,-101755.85819357,0.00042,90]
[420405150,1776083722922,-292.43827184,0.00042,120]
[420405151,1776083722965,-500.0,0.00042,120]
[420405152,1776083723008,-193.64,0.0004205,91]
[420405153,1776083723049,-1500.0,0.00042054,120]
[420405154,1776083723085,-102791.27389135,0.000421,120]
[420405155,1776083723123,-1500.0,0.00042191,120]
[420405156,1776083723157,-1000.0,0.00042233,120]
[420405157,1776083723197,-13098.0,0.000423,60]
[420405158,1776083723231,-175.0,0.00042328,120]
[420405159,1776083723264,-1500.0,0.00042328,120]
[420405160,1776083723296,-1500.0,0.00042465,120]
[420405161,1776083723336,-2000.0,0.000425,90]
[420405162,1776083723374,-500.0,0.000425,120]
[420405163,1776083723413,-153.76,0.00042546,120]
[420405164,1776083723449,-500.0,0.00042575,120]
[420405165,1776083723484,-1500.0,0.00042602,120]
[420405166,1776083723517,-1500.0,0.00042739,120]
[420405167,1776083723547,-498.52,0.00042798,120]
[420405168,1776083723580,-160.27,0.000428,30]
[420405169,1776083723617,-193.64,0.0004283,96]
[420405170,1776083723657,-1500.0,0.00042876,120]
[420405171,1776083723690,-2000.0,0.00043,120]
[420405172,1776083723722,-13606.20614065,0.00043,90]
[420405173,1776083723760,-15400.0,0.00043,60]
[420405174,1776083723806,-37240.0,0.00043,60]
[420405175,1776083723855,-604.71198928,0.00043,120]
[420405176,1776083723921,-3500.0,0.00043,120]
[420405177,1776083723985,-500.0,0.00043,120]
[420405178,1776083724029,-1500.0,0.00043013,120]
[420405179,1776083724073,-823.71,0.00043068,60]
[420405180,1776083724109,-228.07,0.00043068,60]
[420405181,1776083724153,-339.57087563,0.000431,120]
[420405182,1776083724195,-500.0,0.00043118,120]
[420405183,1776083724239,-1500.0,0.0004315,120]
[420405184,1776083724288,-300.0,0.00043178,120]
[420405185,1776083724328,-1500.0,0.00043287,120]
[420405186,1776083724371,-500.0,0.00043342,120]
[420405187,1776083724414,-7527.528,0.00043375,30]
[420405188,1776083724455,-1020.65164943,0.00043424,120]
[420405189,1776083724489,-300.0,0.00043452,120]
[420405190,1776083724528,-200.0,0.00043452,120]
[420405191,1776083724583,-2000.0,0.000435,120]
[420405192,1776083724627,-500.0,0.000435,120]
[420405193,1776083724676,-193.64,0.0004361,101]
[420405194,1776083724715,-13098.0,0.0004365,60]
[420405195,1776083724757,-300.0,0.00043726,120]
[420405196,1776083724802,-17900.95242489,0.000438,120]
[420405197,1776083724859,-1000000.0,0.000438,30]
[420405198,1776083724905,-224.932033,0.000438,120]
[420405199,1776083724950,-1037.396618,0.000438,120]
[420405200,1776083724995,-151.0,0.000438,120]
[420405201,1776083725051,-224.932033,0.000438,120]
[420405202,1776083725099,-1037.396618,0.000438,120]
[420405203,1776083725145,-154.713183,0.000438,120]
[420405204,1776083725198,-224.932033,0.000438,120]
[420405205,1776083725240,-1037.396618,0.000438,120]
[420405206,1776083725278,-1286.059783,0.000438,120]
[420405207,1776083725319,-1037.396618,0.000438,120]
[420405208,1776083725350,-224.932033,0.000438,120]
[420405209,1776083725390,-1286.059783,0.000438,120]
[420405210,1776083725422,-1286.059783,0.000438,120]
[420405211,1776083725477,-1286.059783,0.000438,120]
[420405212,1776083725523,-297.275677,0.000438,120]
[420405213,1776083725567,-297.275677,0.000438,120]
[420405214,1776083725603,-297.275677,0.000438,120]
[420405215,1776083725647,-297.275677,0.000438,120]
[420405216,1776083725704,-521.031213,0.000438,120]
[420405217,1776083725741,-521.031213,0.000438,120]
[420405218,1776083725787,-521.031213,0.000438,120]
[420405219,1776083725834,-521.031213,0.000438,120]
[420405220,1776083725867,-151.0,0.000438,120]
[420405221,1776083725900,-500.0,0.00043835,120]
[420405222,1776083726857,10053.23559738,0.00039836,30]
[420405223,1776083726932,276.70863036,0.00042836,30]
[420405224,1776083727524,593.0,0.00034325,30]
[420405225,1776083727671,1378.0,0.00034325,30]
[420405226,1776083727951,593.0,0.00035908,30]
[420405227,1776083728001,1318.0,0.00035908,30]
[420405228,1776083728172,490.0,0.0004,30]
[420405229,1776083728216,1261.0,0.0004,30]
[420405230,1776083728514,440.0,0.00041232,60]
[420405231,1776083728562,1206.0,0.00041232,60]
[420405232,1776083728621,19273.02,0.00043,60]
[420405233,1776083728668,1848.53,0.00043,60]
[420405234,1776083728719,43336.11,0.00043,60]
[420405235,1776083728772,492.93,0.00043,60]
[420405236,1776083728925,1197.0,0.00041999,60]
[420405237,1776083728983,1213.0,0.00041999,60]
[420405238,1776083729228,1087.0,0.00043013,60]
[420405239,1776083729283,1103.0,0.00043013,60]
[420405240,1776083729373,788.0,0.000438,60]
[420405241,1776083729415,1053.0,0.000438,60]
[420405242,1776083729789,516.0,0.00043835,60]
[420405243,1776083730175,1066.0,0.00043835,60]
[420405244,1776083730324,1172.0,0.00043835,60]
[420405245,1776083730437,1190.0,0.00043835,60]
[420405246,1776083730508,390.2247818,0.00043835,30]
[420405247,1776083731261,1172.0,0.00043835,60]
[420405248,1776083732291,151.0,0.000438,60]
[420405249,1776083732674,940.0,0.00043835,60]
[420405250,1776083734245,901.0,0.00043835,60]
[420405251,1776083734506,151.0,0.000438,60]
[420405252,1776083735248,863.0,0.00043835,60]
[420405253,1776083736499,827.0,0.00043835,60]
[420405254,1776083737457,151.0,0.000438,60]
[420405255,1776083738020,390.68667205,0.00043835,120]
[420405256,1776083738054,793.0,0.00043835,60]
[420405257,1776083739429,186.56,0.00038034,30]
[420405258,1776083739515,793.0,0.00043835,60]
[420405259,1776083739695,881.0,0.00043835,60]
[420405260,1776083740431,150.0,0.00042546,120]
[420405261,1776083741124,726.0,0.00043835,60]
[420405262,1776083742499,696.0,0.00043835,60]
[420405263,1776083745354,667.0,0.00043835,60]
[420405264,1776083746648,639.0,0.00043835,60]
[420405265,1776083750227,613.0,0.00043835,60]
[420405266,1776083758200,1999.98,0.00038034,30]
[420405267,1776083758973,613.0,0.00038034,30]
[420405268,1776083759211,1499.98,0.00042546,120]
[420405269,1776083760069,587.0,0.00042546,60]
[420405270,1776083761341,537.0,0.00042546,60]
[420405271,1776083762694,515.0,0.00042546,60]
[420405272,1776083764277,493.0,0.00042546,60]
[420405273,1776083765699,473.0,0.00042546,60]
[420405274,1776083766143,200.0,0.00043836,30]
[420405275,1776083766176,151.0,0.00043836,30]
[420405276,1776083766283,6888.0,0.00043836,30]
[420405277,1776083766322,520.0,0.00043836,30]
[420405278,1776083766364,1030.0,0.00043836,30]
[420405279,1776083766410,151.0,0.00043836,30]
[420405280,1776083766452,500.0,0.00043836,30]
[420405281,1776083766491,10000.0,0.00043836,30]
[420405282,1776083766934,500.0,0.00043836,30]
[420405283,1776083767031,200.0,0.00043836,30]
[420405284,1776083767188,156.587,0.00043836,30]
[420405285,1776083767250,7142.856,0.00043836,30]
[420405286,1776083767287,539.24,0.00043836,30]
[420405287,1776083767327,1068.11,0.00043836,30]
[420405288,1776083767369,151.0,0.00043836,30]
[420405289,1776083767414,500.0,0.00043836,30]
[420405290,1776083767462,1980.70395075,0.00043836,30]
[420405291,1776083767511,500.0,0.00043836,30]
[420405292,1776083767564,200.0,0.00043836,30]
[420405293,1776083767634,200.0,0.00043836,30]
[420405294,1776083767693,162.380719,0.00043836,30]
[420405295,1776083767768,7407.141672,0.00043836,30]
[420405296,1776083767818,559.19188,0.00043836,30]
[420405297,1776083767865,151.0,0.00043836,30]
[420405298,1776083767921,500.0,0.00043836,30]
[420405299,1776083767977,1107.63007,0.00043836,30]
[420405300,1776083768017,500.0,0.00043836,30]
[420405301,1776083768069,200.0,0.00043836,30]
[420405302,1776083768126,200.0,0.00043836,30]
[420405303,1776083768180,168.3888056,0.00043836,30]
[420405304,1776083768233,7681.20591386,0.00043836,30]
[420405305,1776083768366,579.88197956,0.00043836,30]
[420405306,1776083768413,500.0,0.00043836,30]
[420405307,1776083768459,151.0,0.00043836,30]
[420405308,1776083768501,1148.61238259,0.00043836,30]
[420405309,1776083768554,500.0,0.00043836,30]
[420405310,1776083768596,200.0,0.00043836,30]
[420405311,1776083768639,200.0,0.00043836,30]
[420405312,1776083768682,174.61919141,0.00043836,30]
[420405313,1776083768727,7965.41053268,0.00043836,30]
[420405314,1776083768771,601.3376128,0.00043836,30]
[420405315,1776083768874,500.0,0.00043836,30]
[420405316,1776083769723,151.0,0.00043836,30]
[420405317,1776083769804,1191.11104075,0.00043836,30]
[420405318,1776083769852,500.0,0.00043836,30]
[420405319,1776083769893,200.0,0.00043836,30]
[420405320,1776083769941,500.0,0.00043836,30]
[420405321,1776083769993,200.0,0.00043836,30]
[420405322,1776083770039,181.08010149,0.00043836,30]
[420405323,1776083770083,8260.13072239,0.00043836,30]
[420405324,1776083770139,623.58710448,0.00043836,30]
[420405325,1776083770235,500.0,0.00043836,30]
[420405326,1776083770343,151.0,0.00043836,30]
[420405327,1776083770446,500.0,0.00043836,30]
[420405328,1776083770523,200.0,0.00043836,30]
[420405329,1776083770875,518.5,0.00043836,30]
[420405330,1776083770916,1235.18214925,0.00043836,30]
[420405331,1776083770959,200.0,0.00043836,30]
[420405332,1776083770996,187.78006525,0.00043836,30]
[420405333,1776083771040,8565.75555911,0.00043836,30]
[420405334,1776083771074,646.65982734,0.00043836,30]
[420405335,1776083771109,151.0,0.00043836,30]
[420405336,1776083771152,500.0,0.00043836,30]
[420405337,1776083771193,151.0,0.00043836,30]
[420405338,1776083771239,500.0,0.00043836,30]
[420405339,1776083771276,200.0,0.00043836,30]
[420405340,1776083771309,1280.88388878,0.00043836,30]
[420405341,1776083771342,537.6845,0.00043836,30]
[420405342,1776083771377,200.0,0.00043836,30]
[420405343,1776083771427,194.72792766,0.00043836,30]
[420405344,1776083771465,670.58624095,0.00043836,30]
[420405345,1776083771507,8882.6885148,0.00043836,30]
[420405346,1776083771565,151.0,0.00043836,30]
[420405347,1776083771634,500.0,0.00043836,30]
[420405348,1776083771848,151.0,0.00043836,30]
[420405349,1776083771903,500.0,0.00043836,30]
[420405350,1776083771956,200.0,0.00043836,30]
[420405351,1776083772006,1328.27659266,0.00043836,30]
[420405352,1776083772046,557.5788265,0.00043836,30]
[420405353,1776083772077,200.0,0.00043836,30]
[420405354,1776083772114,201.93286099,0.00043836,30]
[420405355,1776083772154,9211.34798985,0.00043836,30]
[420405356,1776083772187,151.0,0.00043836,30]
[420405357,1776083772305,500.0,0.00043836,30]
[420405358,1776083772341,151.0,0.00043836,30]
[420405359,1776083772376,500.0,0.00043836,30]
[420405360,1776083772414,1377.42282659,0.00043836,30]
[420405361,1776083772445,200.0,0.00043836,30]
[420405362,1776083772477,578.20924308,0.00043836,30]
[420405363,1776083772517,9552.16786547,0.00043836,30]
[420405364,1776083772550,151.0,0.00043836,30]
[420405365,1776083772580,351.6793937,0.00043836,30]
[420405366,1776083772614,200.0,0.00043836,30]
[420405367,1776083772649,500.0,0.00043836,30]
[420405368,1776083772684,151.0,0.00043836,30]
[420405369,1776083772740,500.0,0.00043836,30]
[420405370,1776083772828,1428.38747117,0.00043836,30]
[420405371,1776083772955,599.60298507,0.00043836,30]
[420405372,1776083773021,695.39793187,0.00043836,30]
[420405373,1776083773086,9905.5980765,0.00043836,30]
[420405374,1776083773145,200.0,0.00043836,30]
[420405375,1776083773182,151.0,0.00043836,30]
[420405376,1776083773230,500.0,0.00043836,30]
[420405377,1776083773262,253.81755306,0.00043836,30]
[420405378,1776083773298,151.0,0.00043836,30]
[420405379,1776083773339,500.0,0.00043836,30]
[420405380,1776083773389,721.12765535,0.00043836,30]
[420405381,1776083773433,806.64170658,0.00043836,30]
[420405382,1776083773479,621.78829552,0.00043836,30]
[420405383,1776083773539,8607.62635492,0.00043836,30]
[420405384,1776083773588,151.0,0.00043836,30]
[420405385,1776083773634,200.0,0.00043836,30]
[420405386,1776083773672,500.0,0.00043836,30]
[420405387,1776083773708,151.0,0.00043836,30]
[420405388,1776083773776,500.0,0.00043836,30]
[420405389,1776083773825,238.95031808,0.00043836,30]
[420405390,1776083773866,151.0,0.00043836,30]
[420405391,1776083773903,200.0,0.00043836,30]
[420405392,1776083773940,500.0,0.00043836,30]
[420405393,1776083774055,151.0,0.00043836,30]
[420405394,1776083774110,243.79747382,0.00043836,30]
[420405395,1776083774430,151.0,0.00043836,30]
[420405396,1776083774610,375.95712587,0.00043836,30]
[420405397,1776083774673,151.0,0.00043836,30]
[420405398,1776083775004,151.0,0.00043836,30]
[420405399,1776083775061,220.0,0.00043836,30]
[420405400,1776083775277,520.8254234,0.00043836,30]
[420405401,1776083775349,151.0,0.00043836,30]
[420405402,1776083775574,575.69,0.00020286,30]
[420405403,1776083775610,151.0,0.00043836,30]
[420405404,1776083775647,220.0,0.00043836,30]
[420405405,1776083776130,151.0,0.00043836,30]
[420405406,1776083776183,1151.38,0.00022459,30]
[420405407,1776083776233,620.0,0.00043836,30]
[420405408,1776083776268,151.0,0.00043836,30]
[420405409,1776083776303,220.0,0.00043836,30]
[420405410,1776083776390,1727.07,0.00024633,30]
[420405411,1776083776622,151.0,0.00043836,30]
[420405412,1776083776853,151.0,0.00043836,30]
[420405413,1776083776908,642.94,0.00043836,30]
[420405414,1776083776961,326.62253361,0.00043836,30]
[420405415,1776083777007,151.0,0.00043836,30]
[420405416,1776083777172,500.0,0.00043836,30]
[420405417,1776083777227,2302.76,0.00026806,30]
[420405418,1776083777510,151.0,0.00043836,30]
[420405419,1776083777597,156.587,0.00043836,30]
[420405420,1776083777654,2878.45,0.0002898,30]
[420405421,1776083777739,666.72878,0.00043836,30]
[420405422,1776083777816,160.0,0.00043836,30]
[420405423,1776083777881,500.0,0.00043836,30]
[420405424,1776083777939,3454.14,0.00031153,30]
[420405425,1776083778120,162.380719,0.00043836,30]
[420405426,1776083778163,151.0,0.00043836,30]
[420405427,1776083778207,691.39774486,0.00043836,30]
[420405428,1776083778248,426.0,0.00043836,30]
[420405429,1776083778392,500.0,0.00043836,30]
[420405430,1776083778508,160.0,0.00043836,30]
[420405431,1776083778685,4029.83,0.00033327,30]
[420405432,1776083778721,10000.0,0.00043836,30]
[420405433,1776083778766,151.0,0.00043836,30]
[420405434,1776083778807,168.3888056,0.00043836,30]
[420405435,1776083778852,716.97946142,0.00043836,30]
[420405436,1776083779045,1124.24393874,0.000355,30]
[420405437,1776083810311,-500.0,0.00030822,120]
[420405438,1776083810342,-500.0,0.00031726,120]
[420405439,1776083810373,-500.0,0.0003263,120]
[420405440,1776083810414,-500.0,0.00033534,120]
[420405441,1776083810443,-500.0,0.00034438,120]
[420405442,1776083810471,-500.0,0.00035342,120]
[420405443,1776083810505,-500.0,0.00036247,120]
[420405444,1776083810535,-500.0,0.00037151,120]
[420405445,1776083810570,-500.0,0.00038055,120]
[420405446,1776083810616,-153.76,0.00042546,120]
[420405447,1776083810651,-272.89,0.00042546,120]
[420405448,1776083810678,-1400.0,0.00043,120]
[420405449,1776083810721,-200.0,0.00043836,120]
[420405450,1776083810754,-7065.21,0.00044,120]
[420405451,1776083810784,-8583.0,0.00044,120]
[420405452,1776083810811,-2000.0,0.00044,120]
[420405453,1776083810850,-500.0,0.00044,120]
[420405454,1776083810884,-1000.0,0.00044003,120]
[420405455,1776083810924,-500.0,0.00044009,120]
[420405456,1776083810986,-1300.0,0.00044009,120]
[420405457,1776083811040,-262.14730374,0.00044154,99]
[420405458,1776083811121,-300.0,0.00044164,120]
[420405459,1776083811248,-193.64,0.000444,106]
[420405460,1776083811292,-7206.51,0.000445,120]
[420405461,1776083811331,-8754.66,0.000445,120]
[420405462,1776083811360,-2500.0,0.000445,120]
[420405463,1776083811397,-2000.0,0.000445,120]
[420405464,1776083811428,-500.0,0.000445,120]
[420405465,1776083811461,-500.0,0.00044557,120]
[420405466,1776083811497,-1300.0,0.00044557,120]
[420405467,1776083811535,-300.0,0.00044822,120]
[420405468,1776083811569,-500.0,0.00044889,120]
[420405469,1776083811609,-199.79932,0.0004495,120]
[420405470,1776083811650,-199.79933,0.0004495,120]
[420405471,1776083811691,-199.79932,0.0004495,120]
[420405472,1776083811718,-199.79933,0.0004495,120]
[420405473,1776083811748,-199.79932,0.0004495,120]
[420405474,1776083811779,-7350.64,0.00045,120]
[420405475,1776083811806,-8929.76,0.00045,120]
[420405476,1776083811838,-2500.0,0.00045,120]
[420405477,1776083811869,-1293.92,0.00045,120]
[420405478,1776083811901,-4292.0,0.00045,120]
[420405479,1776083811928,-3431.16184,0.00045,120]
[420405480,1776083811957,-500.0,0.00045,120]
[420405481,1776083811986,-1527.4,0.00045,120]
[420405482,1776083812024,-2000.0,0.00045,120]
[420405483,1776083812051,-459.0,0.00045,120]
[420405484,1776083812089,-500.0,0.00045,120]
[420405485,1776083812332,-500.0,0.00045105,120]
[420405486,1776083812402,-1300.0,0.00045105,120]
[420405487,1776083812442,-300.0,0.00045151,120]
[420405488,1776083812701,-193.64,0.0004518,109]
[420405489,1776083812761,-2500.0,0.000452,120]
[420405490,1776083812824,-974.26,0.000452,120]
[420405491,1776083812874,-252.88,0.000452,120]
[420405492,1776083812912,-151.0,0.00045202,120]
[420405493,1776083813256,-151.0,0.00045205,120]
[420405494,1776083813287,-306.149585,0.00045205,120]
[420405495,1776083813322,-306.149585,0.00045205,120]
[420405496,1776083813352,-306.149585,0.00045205,120]
[420405497,1776083813387,-306.149585,0.00045205,120]
[420405498,1776083813419,-306.149585,0.00045205,120]
[420405499,1776083813459,-306.149585,0.00045205,120]
[420405500,1776083813497,-306.149585,0.00045205,120]
[420405501,1776083813544,-306.149585,0.00045205,120]
[420405502,1776083813597,-151.0,0.00045205,120]
[420405503,1776083813639,-212.009879,0.00045205,120]
[420405504,1776083813683,-151.0,0.00045205,120]
[420405505,1776083813723,-212.009879,0.00045205,120]
[420405506,1776083813760,-151.0,0.00045205,120]
[420405507,1776083813818,-212.009879,0.00045205,120]
[420405508,1776083813875,-151.0,0.00045205,120]
[420405509,1776083813938,-212.009879,0.00045205,120]
[420405510,1776083813990,-212.009879,0.00045205,120]
[420405511,1776083814042,-212.009879,0.00045205,120]
[420405512,1776083814088,-212.009879,0.00045205,120]
[420405513,1776083814134,-212.009879,0.00045205,120]
[420405514,1776083814189,-460.164695,0.00045205,120]
[420405515,1776083814225,-460.164695,0.00045205,120]
[420405516,1776083814262,-460.164695,0.00045205,120]
[420405517,1776083814298,-460.164695,0.00045205,120]
[420405518,1776083814333,-460.164695,0.00045205,120]
[420405519,1776083814368,-460.164695,0.00045205,120]
[420405520,1776083814765,-460.164695,0.00045205,120]
[420405521,1776083814831,-460.164695,0.00045205,120]
[420405522,1776083814872,-151.0,0.00045205,120]
[420405523,1776083814918,-151.0,0.00045205,120]
[420405524,1776083814964,-232.612714,0.00045205,120]
[420405525,1776083815017,-151.0,0.00045205,120]